[Event "Festival Groningen-A 2024"]
[Site "Groningen"]
[Date "2024.12.26"]
[Round "5.29"]
[White "Mohammed, Dilshad"]
[Black "Schilstra, Laurens"]
[Result "1/2-1/2"]
[ECO "E18"]
[WhiteElo "2078"]
[BlackElo "2150"]
[Annotator "RC"]
[PlyCount "228"]
[EventDate "2024.12.21"]
[EventType "swiss"]
[EventCountry "NED"]
[SourceTitle "playchess.com"]
[Source "ChessBase"]
[SourceQuality "1"]
[TimeControl "40/5400+30:1800+30"]

1. Nf3 {[%emt 0:00:07]} Nf6 {[%emt 0:00:05]} 2. c4 {[%emt 0:00:05]} e6 {[%emt 0:00:13]} 3. g3 {[%emt 0:00:18]} b6 {[%emt 0:00:14]} 4. Bg2 {[%emt 0:00:11]} Bb7 {[%emt 0:00:06]} 5. O-O {[%emt 0:00:11]} Be7 {[%emt 0:00:06]} 6. d4 {[%emt 0:00:27]} O-O {[%emt 0:00:22]} 7. Nc3 {[%emt 0:00:11]} Bb4 {[%emt 0:00:43]} 8. Qc2 {[%emt 0:01:40]} c5 {[%emt 0:03:48]} 9. Bg5 {[%emt 0:00:42]} h6 {[%emt 0:00:21]} 10. Bxf6 {[%emt 0:02:49]} Qxf6 {[%emt 0:00:07]} 11. Ng5 {[%emt 0:00:52]} hxg5 {[%emt 0:05:00]} 12. Bxb7 {[%emt 0:00:19]} Bxc3 {[%emt 0:00:07]} 13. bxc3 {[%emt 0:00:31]} Nc6 {[%emt 0:00:04]} 14. Bxa8 {[%emt 0:00:03]} Rxa8 {[%emt 0:00:03]} 15. Rad1 {[%emt 0:06:24]} cxd4 {[%emt 0:06:09]} 16. cxd4 {[%emt 0:00:02]} Rc8 {[%emt 0:00:11]} 17. Qe4 {[%emt 0:03:12]} Na5 {[%emt 0:06:08]} 18. c5 {[%emt 0:00:37]} b5 {[%emt 0:00:43]} 19. d5 {[%emt 0:00:53]} Qf5 {[%emt 0:12:34]} 20. Qxf5 {[%emt 0:05:04]} exf5 {[%emt 0:00:07]} 21. c6 {[%emt 0:00:19]} dxc6 {[%emt 0:00:08]} 22. dxc6 {[%emt 0:00:11]} Nc4 {[%emt 0:03:39]} 23. Rd5 {[%emt 0:00:25]} Rxc6 {[%emt 0:00:46]} 24. Rxb5 {[%emt 0:00:28]} Re6 {[%emt 0:02:03]} 25. e3 {[%emt 0:11:50]} g6 {[%emt 0:09:35]} 26. Rc1 {[%emt 0:01:06]} Nd2 {[%emt 0:01:38]} 27. Rb8+ {[%emt 0:01:41]} Kg7 {[%emt 0:00:04]} 28. Rb7 {[%emt 0:00:04]} a6 {[%emt 0:02:51]} 29. a4 {[%emt 0:01:34]} g4 {[%emt 0:03:20]} 30. Kg2 {[%emt 0:03:15]} Nf3 {[%emt 0:01:11]} 31. h4 {[%emt 0:00:24]} Rd6 {[%emt 0:02:34]} 32. Rbc7 {[%emt 0:02:43]} Rd2 {[%emt 0:08:47]} 33. Ra1 {[%emt 0:28:57]} Ne5 {[%emt 0:09:59]} 34. Rcc1 {[%emt 0:07:39]} Rb2 {[%emt 0:08:23]} 35. Rd1 {[%emt 0:03:56]} Nc4 {[%emt 0:01:19]} 36. Rd4 {[%emt 0:01:47]} Nd2 {[%emt 0:04:54]} 37. Rd1 {[%emt 0:01:06]} Ne4 {[%emt 0:00:31]} 38. Rxe4 {[%emt 0:00:49]} fxe4 {[%emt 0:00:06]} 39. Rd6 {[%emt 0:00:03]} Rb1 {[%emt 0:00:45]} 40. Rxa6 {[%emt 0:00:08]} Ra1 {[%emt 0:00:42]} 41. a5 {[%emt 0:30:08]} f5 {[%emt 0:31:18]} 42. Ra7+ {[%emt 0:00:24]} Kg8 {[%emt 0:00:35]} 43. a6 {[%emt 0:00:13]} Kf8 {[%emt 0:00:22]} 44. Ra8+ {[%emt 0:01:59]} Kg7 {[%emt 0:01:48]} 45. a7 {[%emt 0:00:08]} Kh7 {[%emt 0:00:13]} 46. h5 {[%emt 0:00:47]} gxh5 {[%emt 0:00:09]} 47. Rf8 {[%emt 0:00:05]} Rxa7 {[%emt 0:00:03]} 48. Rxf5 {[%emt 0:00:08]} Kg6 {[%emt 0:00:08]} 49. Rf4 {[%emt 0:01:08]} Ra4 {[%emt 0:00:37]} 50. Kf1 {[%emt 0:00:27]} Kg5 {[%emt 0:00:12]} 51. Rf8 {[%emt 0:00:12]} Ra2 {[%emt 0:02:06]} 52. Ke1 {[%emt 0:00:38]} Rb2 {[%emt 0:02:01]} 53. Rf4 {[%emt 0:01:06]} Rb4 {[%emt 0:00:11]} 54. Kd2 {[%emt 0:01:21]} Rc4 {[%emt 0:00:44]} 55. Rf8 {[%emt 0:06:34]} Kg6 {[%emt 0:01:29]} 56. Ra8 {[%emt 0:02:43]} Kg5 {[%emt 0:00:32]} 57. Rd8 {[%emt 0:00:31]} Rc5 {[%emt 0:00:44]} 58. Rg8+ {[%emt 0:03:08]} Kf5 {[%emt 0:00:12]} 59. Rb8 {[%emt 0:00:16]} Kg5 {[%emt 0:00:07]} 60. Ra8 {[%emt 0:01:11]} Kf5 {[%emt 0:00:09]} 61. Ra2 {[%emt 0:00:08]} Kg5 {[%emt 0:06:54]} 62. Ra7 {[%emt 0:00:41]} Kf5 {[%emt 0:00:00]} 63. Ra3 {[%emt 0:05:01]} Kg5 {[%emt 0:00:00]} 64. Rb3 {[%emt 0:00:00]} Rd5+ {[%emt 0:00:00]} 65. Ke2 {[%emt 0:00:00]} Rc5 {[%emt 0:00:00]} 66. Kd2 {[%emt 0:00:35]} Rd5+ {[%emt 0:00:00]} 67. Kc2 {[%emt 0:00:20]} Rf5 {[%emt 0:00:00]} 68. Kc3 {[%emt 0:00:27]} Rxf2 {[%emt 0:00:00]} 69. Kd4 {[%emt 0:00:01]} Rf3 {[%emt 0:00:00]} 70. Rb5+ {[%emt 0:00:00]} Kg6 {[%emt 0:00:00]} 71. Rb6+ {[%emt 0:00:00]} Rf6 {[%emt 0:00:00]} 72. Rb8 {[%emt 0:00:00]} Re6 {[%emt 0:00:00]} 73. Rg8+ {[%emt 0:00:00]} Kh7 {[%emt 0:00:00]} 74. Rg5 {[%emt 0:00:00]} Kh6 {[%emt 0:00:00]} 75. Rg8 {[%emt 0:00:00]} Re7 {[%emt 0:00:00]} 76. Rh8+ {[%emt 0:00:00]} Kg6 {[%emt 0:00:00]} 77. Rg8+ {[%emt 0:00:00]} Kh7 {[%emt 0:00:00]} 78. Rg5 {[%emt 0:00:00]} Kh6 {[%emt 0:00:00]} 79. Rg8 {[%emt 0:00:00]} Re6 {[%emt 0:00:00]} 80. Rh8+ {[%emt 0:00:00]} Kg5 {[%emt 0:00:00]} 81. Rg8+ {[%emt 0:00:00]} Rg6 {[%emt 0:00:00]} 82. Rh8 {[%emt 0:00:00]} Rh6 {[%emt 0:00:00]} 83. Rg8+ {[%emt 0:00:00]} Kf5 {[%emt 0:00:00]} 84. Rd8 {[%emt 0:00:00]} h4 {[%emt 0:00:00]} 85. Rd5+ {[%emt 0:00:00]} Ke6 {[%emt 0:12:00]} 86. gxh4 {[%emt 0:00:00]} Rxh4 {[%emt 0:00:00]} 87. Ra5 {[%emt 0:00:00]} g3 {[%emt 0:00:00]} 88. Rg5 {[%emt 0:00:00]} Rh3 {[%emt 0:00:00]} 89. Kxe4 {[%emt 0:00:00]} Rh4+ {[%emt 0:00:00]} 90. Kf3 {[%emt 0:00:00]} Ra4 {[%emt 0:00:00]} 91. Rxg3 {[%emt 0:00:00]} Rb4 {[%emt 0:00:00]} 92. Rg8 {[%emt 0:00:00]} Ra4 {[%emt 0:00:00]} 93. Re8+ {[%emt 0:00:00]} Kf6 {[%emt 0:00:00]} 94. Rb8 {[%emt 0:00:00]} Ke5 {[%emt 0:00:00]} 95. Rb5+ {[%emt 0:00:00]} Ke6 {[%emt 0:00:00]} 96. Rb8 {[%emt 0:00:00]} Ke5 {[%emt 0:00:00]} 97. Re8+ {[%emt 0:00:00]} Kf6 {[%emt 0:00:00]} 98. Rg8 {[%emt 0:00:00]} Rb4 {[%emt 0:00:00]} 99. Ra8 {[%emt 0:00:00]} Ke5 {[%emt 0:00:00]} 100. Re8+ {[%emt 0:00:00]} Kf6 {[%emt 0:00:00]} 101. Ke2 {[%emt 0:00:24]} Rb3 {[%emt 0:00:00]} 102. Rd8 {[%emt 0:00:03]} Ke5 {[%emt 0:00:00]} 103. Rh8 {[%emt 0:00:07]} Ra3 {[%emt 0:00:00]} 104. Rh4 {[%emt 0:00:03]} Ra1 {[%emt 0:00:00]} 105. Rb4 {[%emt 0:00:25]} Kd5 {[%emt 0:00:00]} 106. Kf3 {[%emt 0:01:06]} Rf1+ {[%emt 0:00:00]} 107. Kg4 {[%emt 0:00:06]} Ke5 {[%emt 0:00:00]} 108. Ra4 {[%emt 0:00:25]} Rf2 {[%emt 0:00:00]} 109. Kg3 {[%emt 0:00:08]} Rf1 {[%emt 0:00:00]} 110. Kg4 {[%emt 0:00:34]} Rf2 {[%emt 0:00:00]} 111. Kg3 {[%emt 0:00:07]} Rf1 {[%emt 0:00:00]} 112. Kg2 {[%emt 0:00:44]} Rf8 {[%emt 0:00:00]} 113. Rf4 {[%emt 0:00:26]} Rxf4 {[%emt 0:00:00]} 114. exf4+ {[%emt 0:00:02]} Kxf4 {[%emt 0:00:00]} 1/2-1/2

[Event "Festival Groningen-A 2024"]
[Site "Groningen"]
[Date "2024.12.26"]
[Round "5.30"]
[White "Khoo-Thwe, Louis"]
[Black "Kanis, Sierk"]
[Result "1/2-1/2"]
[ECO "B13"]
[WhiteElo "2124"]
[BlackElo "2116"]
[Annotator "RC"]
[PlyCount "86"]
[EventDate "2024.12.21"]
[EventType "swiss"]
[EventCountry "NED"]
[SourceTitle "playchess.com"]
[Source "ChessBase"]
[SourceQuality "1"]
[TimeControl "40/5400+30:1800+30"]

1. e4 {[%emt 0:00:03]} c6 {[%emt 0:00:04]} 2. d4 {[%emt 0:00:06]} d5 {[%emt 0:00:09]} 3. exd5 {[%emt 0:00:11]} cxd5 {[%emt 0:00:05]} 4. Bd3 {[%emt 0:00:07]} Nf6 {[%emt 0:00:05]} 5. c3 {[%emt 0:00:17]} Bg4 {[%emt 0:00:07]} 6. Qb3 {[%emt 0:01:25]} Qc7 {[%emt 0:00:09]} 7. Ne2 {[%emt 0:01:04]} Bxe2 {[%emt 0:00:15]} 8. Bxe2 {[%emt 0:00:17]} e6 {[%emt 0:00:21]} 9. Be3 {[%emt 0:02:50]} Bd6 {[%emt 0:00:20]} 10. Nd2 {[%emt 0:01:28]} Nc6 {[%emt 0:01:51]} 11. f4 {[%emt 0:05:15]} O-O {[%emt 0:03:54]} 12. O-O {[%emt 0:00:49]} Ne7 {[%emt 0:01:29]} 13. g3 {[%emt 0:04:00]} Nf5 {[%emt 0:01:28]} 14. Bf2 {[%emt 0:00:36]} Be7 {[%emt 0:21:33]} 15. Bd3 {[%emt 0:09:09]} Nd6 {[%emt 0:04:52]} 16. a4 {[%emt 0:04:09]} Rfc8 {[%emt 0:02:15]} 17. Qc2 {[%emt 0:05:03]} Rab8 {[%emt 0:02:24]} 18. f5 {[%emt 0:05:40]} exf5 {[%emt 0:03:37]} 19. Bxf5 {[%emt 0:00:34]} Nxf5 {[%emt 0:03:29]} 20. Qxf5 {[%emt 0:00:09]} b5 {[%emt 0:00:46]} 21. axb5 {[%emt 0:02:34]} Rxb5 {[%emt 0:04:33]} 22. Rxa7 {[%emt 0:00:59]} Qxa7 {[%emt 0:00:16]} 23. Qxc8+ {[%emt 0:00:08]} Bf8 {[%emt 0:00:01]} 24. b4 {[%emt 0:08:16]} Rb8 {[%emt 0:01:39]} 25. Qf5 {[%emt 0:01:00]} Qc7 {[%emt 0:08:50]} 26. Nb1 {[%emt 0:14:48]} Re8 {[%emt 0:04:11]} 27. Qf3 {[%emt 0:06:06]} Ne4 {[%emt 0:01:28]} 28. Be3 {[%emt 0:02:40]} Re6 {[%emt 0:04:45]} 29. Bf4 {[%emt 0:08:36]} Qc4 {[%emt 0:01:34]} 30. Rc1 {[%emt 0:01:13]} g5 {[%emt 0:08:54]} 31. Nd2 {[%emt 0:02:48]} Qa2 {[%emt 0:04:37]} 32. Nxe4 {[%emt 0:00:15]} dxe4 {[%emt 0:00:16]} 33. Qg4 {[%emt 0:00:12]} h6 {[%emt 0:03:48]} 34. Be3 {[%emt 0:00:48]} Qc4 {[%emt 0:01:53]} 35. Qd1 {[%emt 0:02:38]} Rf6 {[%emt 0:01:44]} 36. Qc2 {[%emt 0:01:18]} Rf3 {[%emt 0:00:55]} 37. Qd2 {[%emt 0:01:20]} Bd6 {[%emt 0:03:24]} 38. Ra1 {[%emt 0:02:10]} f5 {[%emt 0:02:28]} 39. Bxg5 {[%emt 0:02:08]} Rd3 {[%emt 0:03:23]} 40. Qf2 {[%emt 0:02:50]} Rf3 {[%emt 0:00:58]} 41. Qd2 {[%emt 0:31:16]} Rd3 {[%emt 0:19:26]} 42. Qf2 {[%emt 0:00:00]} Rf3 {[%emt 0:00:05]} 43. Qd2 {[%emt 0:00:00]} Rd3 {[%emt 0:00:01]} 1/2-1/2